bitfinex/quotes_ETHUSD_20250216
["timestamp","ask_amount","ask_price","bid_price","bid_amount"]
[1739689335776,3.69025,2709.9,2709.4,3.69076]
[1739689335980,3.69025,2709.9,2709.8,0.06907493]
[1739689336138,3.69025,2709.9,2709.4,3.69076]
[1739689336342,3.69033,2709.8,2709.4,3.69076]
[1739689337075,4.48284,2709.7,2709.2,9.0611]
[1739689337261,4.48284,2709.7,2709.2,12.75214]
[1739689337465,4.48284,2709.7,2709.3,3.69097]
[1739689337962,3.69066,2709.6,2709.1,0.7832]
[1739689338168,5.89966628,2709.7,2709.0,6.6913]
[1739689338355,3.69058,2709.6,2709.0,6.6913]
[1739689338876,3.69074,2709.5,2709.0,6.6913]
[1739689339179,3.69074,2709.5,2709.1,0.06994223]
[1739689339543,3.69074,2709.5,2709.0,3.69138]
[1739689339744,3.69074,2709.5,2709.2,0.06983464]
[1739689339977,3.69074,2709.5,2709.1,0.06994223]
[1739689340187,3.69074,2709.5,2709.3,0.06972705]
[1739689340489,3.69074,2709.5,2709.4,0.06961947]
[1739689340672,3.69074,2709.5,2709.0,3.69138]
[1739689340992,3.69074,2709.5,2709.1,0.06994223]
[1739689341992,3.69058,2709.6,2709.1,3.76119223]
[1739689342492,5.28998633,2709.7,2709.1,3.76119223]
[1739689342693,8.17346,2709.7,2709.2,3.69111]
[1739689342897,4.48293,2709.7,2709.3,0.07003732]
[1739689343316,0.7924,2709.7,2709.3,0.89593732]
[1739689343593,0.264,2709.6,2709.3,0.89593732]
[1739689343761,0.264,2709.6,2709.4,3.69084]
[1739689343962,0.264,2709.6,2709.4,7.38168]
[1739689344293,0.264,2709.6,2709.5,0.06981564]
[1739689344494,0.264,2709.6,2709.5,3.76052564]
[1739689344794,5.26037644,2709.8,2709.5,0.06981564]
[1739689344989,0.264,2709.7,2709.6,3.6905]
[1739689345292,0.264,2709.7,2709.6,5.3312129]
[1739689348303,0.264,2709.7,2709.6,0.8148129]
[1739689348600,0.264,2709.7,2709.6,4.5053929]
[1739689349298,0.264,2709.7,2709.6,3.76029134]
[1739689349493,0.264,2709.7,2709.6,0.06971134]
[1739689349700,0.264,2709.7,2709.4,0.8259]
[1739689349900,0.264,2709.7,2709.5,0.0698189]
[1739689350500,0.264,2709.7,2709.5,3.7605089]
[1739689353199,0.264,2709.7,2709.5,0.0698189]
[1739689353419,0.7686,2709.6,2709.2,3.69111]
[1739689354267,0.7686,2709.6,2709.3,0.06985439]
[1739689355819,3.69079,2709.5,2709.3,0.06985439]
[1739689356027,7.38161,2709.5,2709.0,3.69137]
[1739689356316,7.38158,2709.5,2709.0,3.69137]
[1739689356496,0.7849,2709.4,2709.0,3.69137]
[1739689356813,0.7849,2709.4,2709.1,0.07006958]
[1739689357018,4.47578,2709.4,2709.1,0.07006958]
[1739689357577,4.47578,2709.4,2708.9,3.69153]
[1739689357890,4.47578,2709.4,2709.2,0.06996198]
[1739689357891,3.69099,2709.3,2709.2,0.06996198]
[1739689358405,3.69099,2709.3,2708.8,3.69164]
[1739689358605,3.69099,2709.3,2709.2,0.06996198]
[1739689358906,3.69099,2709.3,2708.7,7.38342]
[1739689359379,3.69099,2709.3,2708.8,0.07039242]
[1739689359581,0.7849,2709.0,2708.6,4.5041]
[1739689359804,0.7849,2709.0,2708.9,0.0702848]
[1739689360113,0.7849,2709.0,2708.6,4.5041]
[1739689360312,0.7849,2709.0,2708.9,0.0702848]
[1739689361274,0.7849,2709.0,2708.6,4.50406]
[1739689361479,0.7849,2709.0,2708.9,0.0702848]
[1739689361814,0.7849,2709.0,2708.6,4.50406]
[1739689361991,0.7849,2709.0,2708.9,0.0702848]
[1739689362194,0.7849,2709.0,2708.6,4.50406]
[1739689362510,0.7849,2709.0,2708.9,0.0702848]
[1739689362714,0.7849,2709.0,2708.6,4.50406]
[1739689362916,0.7849,2709.0,2708.9,0.0702848]
[1739689363214,0.7849,2709.0,2708.6,4.50406]
[1739689363411,0.7849,2709.0,2708.9,0.0702848]
[1739689363618,0.7849,2709.0,2708.6,4.50406]
[1739689363909,0.7849,2709.0,2708.9,0.07050369]
[1739689364116,0.263,2708.9,2708.6,4.50406]
[1739689367123,0.263,2708.9,2708.6,3.69186]
[1739689368132,3.95455,2708.9,2708.4,8.19645]
[1739689368309,3.95455,2708.9,2708.4,4.50432]
[1739689368830,3.95455,2708.9,2708.4,8.19645]
[1739689369209,3.95455,2708.9,2708.5,0.07093422]
[1739689369709,0.263,2708.9,2708.5,3.76300422]
[1739689370694,1.106067,2708.9,2708.5,0.07093422]
[1739689370902,3.69193,2708.7,2708.5,0.07093422]
[1739689371106,3.69193,2708.7,2708.2,3.69237]
[1739689371297,3.69193,2708.7,2708.1,3.69262]
[1739689371494,0.806,2708.5,2708.1,3.69262]
[1739689371695,0.806,2708.5,2708.2,0.0712572]
[1739689375353,3.69222,2708.4,2708.2,0.0712572]
[1739689375560,9.009252,2708.5,2708.0,0.00553914]
[1739689375863,9.009252,2708.5,2708.1,0.07136488]
[1739689376356,5.317072,2708.5,2708.1,0.07136488]
[1739689376654,3.69228,2708.4,2708.1,0.07136488]
[1739689376859,4.37134149,2708.4,2708.1,0.07136488]
[1739689377682,0.806,2708.2,2708.1,0.07136488]
[1739689379623,4.49848,2708.2,2708.1,0.07136488]
[1739689381776,3.69248,2708.2,2708.1,0.07136488]
[1739689381943,4.49903,2707.8,2707.7,0.00553975]
[1739689382292,4.49944,2707.5,2707.1,0.15720258]
[1739689383177,7.76344,2707.5,2707.1,0.15720258]
[1739689383377,10.52904814,2707.5,2707.1,0.15720258]
[1739689383579,0.806,2707.5,2707.1,0.15720258]
[1739689383884,0.266,2707.6,2707.2,0.8083]
[1739689384380,0.266,2707.6,2707.5,0.06561261]
[1739689384542,3.9593,2707.6,2707.5,0.06561261]
[1739689385074,0.266,2707.6,2707.5,0.06561261]
[1739689385281,3.9593,2707.6,2707.1,0.15720258]
[1739689385456,3.6933,2707.6,2707.1,0.15720258]
[1739689385651,0.266,2707.5,2707.1,0.15720258]
[1739689385867,0.266,2707.5,2707.1,3.85108258]
[1739689386064,0.266,2707.5,2707.2,3.69383]
[1739689386252,0.266,2707.5,2707.1,0.15720258]
[1739689386253,4.51172,2708.0,2707.1,0.15720258]
[1739689386457,0.266,2707.8,2707.5,4.46391]
[1739689386884,0.266,2707.8,2707.5,0.7705]
[1739689387538,4.51145,2708.2,2707.6,3.69322]
[1739689387745,0.266,2708.1,2707.6,3.69318]
[1739689388048,0.266,2708.1,2707.5,0.7705]
[1739689388248,3.9587,2708.1,2707.5,0.7705]
[1739689388577,3.69277,2708.0,2707.4,3.69911037]
[1739689389745,3.69277,2708.0,2707.4,7.39261037]
[1739689389966,3.69277,2708.0,2707.4,3.69904037]
[1739689390163,4.09388968,2708.0,2707.4,3.69904037]
[1739689390765,0.40111968,2708.0,2707.4,0.00554037]
[1739689390978,0.8189,2707.7,2707.4,0.00554037]
[1739689391207,3.6933,2707.6,2707.5,0.06545233]
[1739689391486,0.45122,2707.6,2707.5,0.06545233]
[1739689391648,4.51217,2707.7,2707.5,0.06545233]
[1739689392048,0.8189,2707.7,2707.5,0.06545233]
[1739689392667,3.6933,2707.6,2707.5,0.06545233]
[1739689393294,4.51215,2707.7,2707.5,0.06545233]
[1739689393457,0.8189,2707.7,2707.5,0.06545233]
[1739689394398,4.51217,2707.7,2707.5,0.06545233]
[1739689394802,3.6933,2707.6,2707.5,0.06545233]
[1739689395159,4.51209,2707.7,2707.5,0.06545233]
[1739689395460,9.18261664,2707.7,2707.5,0.06545233]
[1739689395882,3.6933,2707.6,2707.5,0.06545233]
[1739689397103,5.48933664,2707.7,2707.5,0.06545233]
[1739689397267,3.6933,2707.6,2707.5,0.06545233]
[1739689398806,5.26037644,2707.8,2707.6,3.69319]
[1739689398967,5.52737644,2707.8,2707.6,3.69319]
[1739689399162,5.52737644,2707.8,2707.7,0.06552796]
[1739689399369,5.26037644,2707.8,2707.7,0.06552796]
[1739689399583,5.52737644,2707.8,2707.5,3.69331]
[1739689399785,5.52737644,2707.8,2707.6,0.06559642]
[1739689400708,5.52737644,2707.8,2707.4,4.46961037]
[1739689401185,5.52737644,2707.8,2707.5,0.06570415]
[1739689403401,5.26037644,2707.8,2707.5,0.06570415]
[1739689403608,0.267,2707.7,2707.5,0.06570415]
[1739689403787,0.267,2707.7,2707.5,3.75905415]
[1739689404375,0.8189,2708.1,2707.5,0.06570415]
[1739689404687,0.267,2708.0,2707.7,3.69309]
[1739689405074,0.267,2708.0,2707.8,0.06527633]
[1739689405605,0.267,2708.0,2707.8,0.87027633]
[1739689405811,4.47839,2707.9,2707.8,0.06527633]
[1739689406008,5.322205,2707.9,2707.4,0.00554037]
[1739689406211,5.322205,2707.9,2707.8,0.06526652]
[1739689406407,5.322205,2707.9,2707.4,0.00554037]
[1739689406707,3.69311,2707.8,2707.4,0.00554037]
[1739689407205,1.629315,2707.9,2707.5,3.69341]
[1739689407609,1.629315,2707.9,2707.6,3.69326]
[1739689407773,1.629315,2707.9,2707.5,3.69335]
[1739689408115,3.69321,2707.7,2707.4,0.00554037]
[1739689408292,7.38648,2707.7,2707.4,0.00554037]
[1739689408487,4.47894,2707.5,2707.4,0.00554037]
[1739689411093,7.47894,2707.5,2707.4,0.00554037]
[1739689411295,10.24454814,2707.5,2707.4,0.00554037]
[1739689411539,11.18368813,2707.5,2707.4,0.00554037]
[1739689414939,16.99406457,2707.5,2707.4,3.7e-07]
[1739689417296,17.18491963,2707.5,2707.4,3.7e-07]
[1739689417629,16.63491963,2707.5,2707.4,3.7e-07]
[1739689418702,16.90291963,2707.5,2707.4,3.7e-07]
[1739689421435,16.71206457,2707.5,2707.4,3.7e-07]
[1739689421743,10.94645643,2707.5,2707.4,3.7e-07]
[1739689422235,10.67845643,2707.5,2707.4,3.7e-07]
[1739689422424,10.16095643,2707.5,2707.4,3.7e-07]
[1739689422737,5.26037644,2707.5,2707.4,3.7e-07]
[1739689422924,5.52837644,2707.5,2707.4,0.06628663]
[1739689423126,5.26037644,2707.5,2707.4,3.7e-07]
[1739689423329,5.52937644,2707.5,2707.4,0.06628663]
[1739689423642,5.52937644,2707.5,2707.4,0.06621792]
[1739689424334,5.52837644,2707.5,2707.4,0.82251792]
[1739689424734,5.52837644,2707.5,2707.4,4.51609792]
[1739689424926,0.268,2707.5,2707.4,5.33709171]
[1739689425127,3.69285,2708.0,2707.4,1.64351171]
[1739689425329,0.269,2707.9,2707.5,3.6934]
[1739689425706,0.269,2707.9,2707.6,3.75926937]
[1739689425913,4.47571,2708.4,2707.7,3.69305]
[1739689426114,0.268,2707.9,2707.8,0.7563]
[1739689426322,3.69231,2708.4,2707.9,3.69288]
[1739689426638,0.269,2708.3,2708.0,0.06523428]
[1739689427741,0.269,2708.2,2708.0,3.75789428]
[1739689428609,3.69202,2708.6,2708.0,3.75789428]
[1739689428809,0.269,2708.4,2708.0,3.75789428]
[1739689430256,0.269,2708.4,2708.1,3.69259]
[1739689430423,9.68882743,2708.8,2708.3,0.7756]
[1739689430746,0.268,2708.4,2708.3,0.7756]
[1739689433739,0.268,2708.4,2708.3,4.46795]
[1739689434247,0.268,2708.4,2708.3,0.7756]
[1739689434435,0.268,2708.4,2708.2,3.69248]
[1739689437262,0.268,2708.4,2708.3,3.69235]
[1739689438117,0.268,2708.4,2708.2,3.69242]
[1739689438452,0.268,2708.4,2708.2,3.69237]
[1739689439853,3.69162,2708.9,2708.2,3.69237]
[1739689440053,3.95968,2708.8,2708.3,3.69229]
[1739689440653,3.69181,2708.7,2708.3,3.69229]
[1739689442538,3.69181,2708.7,2708.2,3.69245]
[1739689442944,3.69181,2708.7,2708.2,7.3849]
[1739689443574,3.69181,2708.7,2708.2,3.69245]
[1739689444039,3.69181,2708.7,2708.3,0.06445668]
[1739689444241,3.69181,2708.7,2708.2,7.38486]
[1739689444442,3.69181,2708.7,2708.4,0.06434901]
[1739689444755,3.69181,2708.7,2708.3,0.06445668]
[1739689444972,3.69181,2708.7,2708.5,0.06424136]
[1739689445258,3.69181,2708.7,2708.6,0.06413372]
[1739689445459,3.69181,2708.7,2708.2,7.38475]
[1739689445619,0.268,2708.8,2708.6,0.06413372]
[1739689445825,3.95968,2708.8,2708.6,0.06413372]
[1739689446025,3.95968,2708.8,2708.7,0.06402608]
[1739689446249,3.95968,2708.8,2708.4,3.69219]
[1739689446565,3.95968,2708.8,2708.7,0.06402608]
[1739689446747,3.95968,2708.8,2708.4,3.69219]
[1739689446945,3.95968,2708.8,2708.7,0.06402608]
[1739689447147,3.95968,2708.8,2708.4,3.69219]
[1739689447343,3.95968,2708.8,2708.7,0.06402608]
[1739689447534,3.95968,2708.8,2708.4,3.69219]
[1739689447737,0.268,2708.8,2708.7,0.06402608]
[1739689447941,0.268,2708.8,2708.5,3.69201]
[1739689448142,0.268,2708.8,2708.7,0.06402608]
[1739689448344,0.268,2708.8,2708.6,0.06413372]
[1739689448668,7.38315,2708.9,2708.7,0.06402608]
[1739689448864,0.267,2708.8,2708.7,0.06402608]
[1739689449093,0.267,2708.8,2708.4,3.69221]
[1739689449262,3.95867,2708.8,2708.7,0.06402608]
[1739689449466,3.95867,2708.8,2708.3,7.38452]
[1739689449630,3.95867,2708.8,2708.7,0.06399994]
[1739689449830,3.95867,2708.8,2708.3,4.5898655]
[1739689450033,3.95867,2708.8,2708.4,0.06432287]
[1739689450231,3.69198,2708.6,2708.2,3.69242]
[1739689450537,3.6918,2708.7,2708.3,3.75675053]
[1739689450743,0.267,2708.8,2708.3,3.75675053]
[1739689450956,0.267,2708.8,2708.4,3.69213]
[1739689451364,0.267,2708.8,2708.5,0.06421522]
[1739689451784,3.95869,2708.8,2708.5,0.06421522]
[1739689452936,3.69181,2708.7,2708.5,0.06421522]
[1739689453135,3.69181,2708.7,2708.3,3.69234]
[1739689453335,0.267,2708.8,2708.6,0.06410757]
[1739689453587,0.267,2708.8,2708.3,3.69227]
[1739689453731,0.267,2708.8,2708.7,0.06399994]
[1739689453937,0.267,2708.8,2708.5,0.8016]
[1739689454136,0.267,2708.8,2708.7,0.06399994]
[1739689454336,0.267,2708.8,2708.6,0.06410757]
[1739689454538,0.267,2708.8,2708.7,0.06399994]
[1739689454786,0.267,2708.8,2708.5,0.8016]
[1739689455063,0.267,2708.8,2708.6,0.06410757]
[1739689455269,3.95867,2708.8,2708.6,0.06410757]
[1739689455871,0.267,2708.8,2708.6,0.06410757]
[1739689460400,3.69154,2708.9,2708.6,0.06410757]
[1739689460586,0.266,2708.7,2708.6,0.06410757]
[1739689460990,0.266,2708.7,2708.6,4.35279038]
[1739689461189,0.266,2708.8,2708.6,4.35279038]
[1739689461384,0.266,2708.8,2708.6,4.35278038]
[1739689461585,0.266,2708.8,2708.7,3.69179]
[1739689461988,0.266,2708.8,2708.7,3.75571473]
[1739689462158,8.95160644,2709.2,2708.7,4.64031348]
[1739689462358,0.266,2709.1,2708.8,0.7892]
[1739689462859,0.266,2709.1,2708.9,0.06370948]
[1739689463856,0.266,2709.0,2708.9,0.06370948]
[1739689471223,0.266,2709.0,2708.9,3.75523948]
[1739689471957,0.266,2709.0,2708.9,0.06370948]
[1739689472745,0.265,2709.1,2708.9,3.75521948]
[1739689473615,0.265,2709.1,2708.9,4.57882043]
[1739689473817,0.265,2709.2,2708.9,4.57882043]
[1739689475938,3.95601,2709.3,2708.9,4.57882043]
[1739689476251,3.95601,2709.3,2708.9,3.75521948]
[1739689476740,0.265,2709.3,2709.0,3.69138]
[1739689476952,0.265,2709.3,2709.0,3.75462236]
[1739689479949,0.265,2709.3,2709.0,0.06324236]
[1739689481939,0.265,2709.3,2709.0,3.75462236]
[1739689482135,0.265,2709.3,2709.0,4.5781566]
[1739689482549,3.69088,2709.4,2709.0,4.5781566]
[1739689482720,3.69088,2709.4,2709.1,4.45269]
[1739689482721,0.265,2709.4,2709.1,4.45269]
[1739689482916,0.265,2709.4,2709.1,0.82463475]
[1739689483253,0.265,2709.4,2709.1,1.72771965]
[1739689484533,0.265,2709.4,2709.1,0.96621965]
[1739689484733,0.265,2709.4,2709.1,0.06313475]
[1739689485037,0.265,2709.4,2709.2,0.7615]
[1739689485243,0.265,2709.4,2709.3,0.06284114]
[1739689486365,9.74562644,2709.7,2709.3,0.06284114]
[1739689486671,0.264,2709.5,2709.3,0.06284114]
[1739689486832,0.264,2709.5,2709.3,0.51438025]
[1739689488559,0.7947,2709.7,2709.3,0.51438025]
[1739689488743,0.264,2709.6,2709.3,0.06284114]
[1739689489263,3.69076,2709.5,2709.3,0.06284114]
[1739689489565,3.69076,2709.5,2709.0,4.45282]
[1739689489566,3.69076,2709.5,2709.0,8.14415]
[1739689489765,3.69076,2709.5,2709.4,0.06271069]
[1739689489931,3.69076,2709.5,2709.0,4.45282]
[1739689490131,3.69076,2709.5,2709.4,0.06271069]
[1739689490362,3.69076,2709.5,2709.0,5.567259]
[1739689490544,3.69076,2709.5,2709.4,0.06271069]
[1739689490743,3.95469,2709.6,2709.0,5.567259]
[1739689490944,3.95469,2709.6,2709.4,0.06260287]
[1739689491256,3.95469,2709.6,2709.5,0.0624953]
[1739689491451,3.95469,2709.6,2709.1,3.6912]
[1739689491658,3.95469,2709.6,2709.2,0.98866394]
[1739689492354,3.69072,2709.5,2709.2,0.98866394]
[1739689492744,3.95469,2709.6,2709.2,0.98866394]
[1739689494067,3.69075,2709.5,2709.2,0.98866394]
[1739689495583,0.264,2709.6,2709.2,0.06281804]
[1739689495784,3.69091,2709.4,2709.2,0.06281804]
[1739689495990,3.69091,2709.4,2709.0,0.7615]
[1739689496175,0.8039,2709.3,2708.8,3.8072]
[1739689496487,3.69128,2709.1,2708.8,0.8072]
[1739689498053,4.49497,2709.3,2708.8,0.8072]
[1739689498253,3.69115,2709.2,2708.8,1.1851714]
[1739689500586,4.49497,2709.3,2708.8,4.8768114]
[1739689500888,3.69113,2709.2,2708.8,1.1851714]
[1739689501752,3.69133,2709.1,2708.8,1.1851714]
[1739689501952,0.8039,2709.3,2708.8,1.1851714]
[1739689501953,4.49498,2709.3,2708.8,1.1851714]
[1739689502178,3.69116,2709.2,2708.8,4.8768214]
[1739689502379,3.69116,2709.2,2708.8,1.1851714]
[1739689502580,3.69116,2709.2,2708.8,0.8072]
[1739689503092,3.69132,2709.1,2708.8,0.8072]
[1739689503276,0.8039,2709.3,2708.6,0.8072]
[1739689503277,3.69153,2708.9,2708.6,0.8072]
[1739689503476,3.69129,2709.1,2708.6,4.49914]
[1739689503685,3.69129,2709.1,2708.6,5.318265]
[1739689503875,3.6914,2709.0,2708.6,1.626325]
[1739689504092,3.6914,2709.0,2708.7,0.06345087]
[1739689506095,3.6916,2708.9,2708.7,0.06345087]
[1739689506281,3.6914,2709.0,2708.7,0.06345087]
[1739689506464,7.38304,2709.0,2708.7,0.06345087]
[1739689506672,3.69122,2709.2,2708.7,3.75524087]
[1739689506870,3.69122,2709.2,2708.7,0.06345087]
[1739689507065,3.69134,2709.1,2708.7,0.06345087]
[1739689507300,3.69118,2709.2,2708.7,0.51971496]
[1739689507592,3.69118,2709.2,2708.7,4.21150496]
[1739689508360,3.69133,2709.1,2708.7,0.51971496]
[1739689508562,3.69118,2709.2,2708.7,0.06345087]
[1739689508774,3.69141,2709.0,2708.7,0.06345087]
[1739689510409,3.6916,2708.9,2708.7,0.06345087]
[1739689510565,0.264,2708.8,2708.7,0.06345087]
[1739689511070,0.264,2708.8,2708.7,0.06348354]
[1739689511283,3.69184,2708.7,2708.2,10.38482]
[1739689511460,3.69184,2708.7,2708.2,7.4591]
[1739689512067,3.69197,2708.6,2708.2,7.4591]
[1739689512896,7.38398,2708.6,2708.2,3.7667]
[1739689513109,3.69197,2708.6,2708.2,3.7667]
[1739689513309,4.51398,2708.5,2707.9,0.7667]
[1739689513473,0.8218,2708.5,2707.9,5.0473324]
[1739689513675,3.69223,2708.4,2707.9,5.0473324]
[1739689514077,3.69237,2708.3,2707.9,0.7667]
[1739689516396,4.51391,2708.5,2708.0,3.69269]
[1739689516597,4.51401,2708.5,2708.0,3.69269]
[1739689517680,8.95242644,2708.6,2708.0,3.69269]
[1739689519721,3.69208,2708.5,2708.1,0.06428959]
[1739689520116,7.38428,2708.5,2708.1,0.06428959]
[1739689520414,3.69208,2708.5,2708.1,3.75687959]
[1739689520606,8.95233644,2708.6,2708.1,3.75687959]
[1739689521315,5.26037644,2708.6,2708.2,3.69242]
[1739689521514,8.95231644,2708.6,2708.2,3.69242]
[1739689521726,5.26037644,2708.6,2708.3,0.06428015]
[1739689521919,0.264,2708.5,2708.3,4.55998015]
[1739689522096,0.264,2708.5,2708.3,4.4957]
[1739689522298,0.264,2708.5,2708.4,0.06418556]
[1739689525224,3.95608,2708.5,2708.4,0.06418556]
[1739689525386,4.95990564,2708.5,2708.4,0.06418556]
[1739689525588,4.95990564,2708.5,2708.0,4.49615]
[1739689525891,3.95608,2708.5,2708.0,4.49615]
[1739689526215,3.95608,2708.5,2708.1,3.75711875]
[1739689527412,0.264,2708.5,2708.1,3.75702875]
[1739689528710,3.95608,2708.5,2708.1,3.75702875]
[1739689529130,7.64826,2708.5,2708.1,0.06449875]
[1739689529439,3.95608,2708.5,2708.1,0.06449875]
[1739689532232,3.69224,2708.4,2708.1,0.06449875]
[1739689532631,3.69224,2708.4,2708.1,0.13884206]
[1739689534302,4.45227,2708.3,2708.1,0.13884206]
[1739689534503,4.45227,2708.3,2707.9,3.69289]
[1739689534703,4.45227,2708.3,2708.0,0.13906293]
[1739689534900,3.6926,2708.2,2708.0,0.13906293]
[1739689535106,3.69258,2708.2,2707.7,3.6931]
[1739689535407,7.38515,2708.2,2708.1,0.13895249]
[1739689535649,7.38515,2708.2,2707.7,3.6931]
[1739689535808,3.69257,2708.2,2708.1,0.13895249]
[1739689536006,3.69257,2708.2,2707.7,3.6931]
[1739689536207,3.69257,2708.2,2708.1,0.13895249]
[1739689536736,3.69257,2708.2,2707.7,3.0]
[1739689536962,3.69259,2708.2,2708.1,0.13895249]
[1739689537105,3.69269,2708.1,2707.6,3.69322]
[1739689537305,0.8091,2708.0,2707.7,0.13939427]
[1739689537504,0.8091,2708.0,2707.6,3.0]
[1739689537747,3.69296,2707.9,2707.7,0.13939427]
[1739689538162,3.69296,2707.9,2707.5,3.69341]
[1739689538460,3.69296,2707.9,2707.8,0.13939499]
[1739689538638,3.69296,2707.9,2707.4,6.69357037]
[1739689538840,3.69296,2707.9,2707.8,0.13939499]
[1739689539366,3.69313,2707.8,2707.4,3.7e-07]
[1739689539564,0.264,2707.7,2707.4,3.7e-07]
[1739689540062,3.95717,2707.7,2707.4,3.7e-07]
[1739689541634,0.264,2707.7,2707.4,3.7e-07]
[1739689542662,3.95725,2707.7,2707.4,3.7e-07]
[1739689542812,0.8091,2707.6,2707.4,3.7e-07]
[1739689543462,3.95725,2707.7,2707.4,3.7e-07]
[1739689543761,3.69331,2707.6,2707.4,3.7e-07]
[1739689545457,0.264,2707.7,2707.4,3.7e-07]
[1739689545862,3.95725,2707.7,2707.4,3.7e-07]
[1739689546030,0.264,2707.7,2707.4,3.7e-07]
[1739689546367,0.264,2707.7,2707.4,0.81590037]
[1739689546674,0.264,2707.7,2707.4,4.50937037]
[1739689547431,0.264,2707.7,2707.4,0.81590037]
[1739689549155,0.264,2707.7,2707.5,0.13972639]
[1739689553335,0.264,2707.7,2707.5,3.83313639]
[1739689553633,0.264,2707.7,2707.5,0.13972639]
[1739689554133,3.95718,2707.7,2707.5,0.13972639]
[1739689557063,4.71168,2707.7,2707.5,0.13972639]
[1739689559357,0.264,2707.7,2707.5,0.13972639]
[1739689566461,0.264,2707.7,2707.5,3.83308639]
[1739689566783,5.26037644,2708.0,2707.6,4.4448]
[1739689566967,8.95319644,2708.0,2707.6,0.89141674]
[1739689567166,0.264,2707.9,2707.6,0.89141674]
[1739689567874,0.264,2707.9,2707.6,4.58464674]
[1739689568655,0.264,2707.9,2707.6,0.89141674]
[1739689569390,3.95691,2707.9,2707.6,0.89141674]
[1739689569949,0.264,2707.9,2707.6,0.89141674]
[1739689571390,3.69307,2707.8,2707.6,0.89141674]
[1739689572767,3.95691,2707.9,2707.6,0.89141674]
[1739689573995,0.264,2707.9,2707.6,0.89141674]
[1739689574301,0.264,2707.9,2707.7,3.69311]
[1739689574596,0.264,2707.9,2707.6,4.58459674]
[1739689574597,0.264,2707.9,2707.8,0.13968601]
[1739689574889,0.264,2707.9,2707.6,4.44468]
[1739689575194,0.264,2707.9,2707.7,0.13977684]
[1739689576597,3.9569,2707.9,2707.7,0.13977684]
[1739689577385,0.264,2707.9,2707.7,0.13977684]
[1739689579564,4.49603,2708.3,2707.8,3.69296]
[1739689579771,15.71394014,2709.4,2707.8,2.31866959]
[1739689579772,0.264,2708.2,2707.8,2.31866959]
[1739689579979,0.264,2708.2,2708.0,3.69263]
[1739689580463,0.264,2708.2,2708.1,0.13928272]
[1739689581002,0.264,2708.3,2708.1,0.13928272]
[1739689581996,0.264,2708.3,2707.9,3.69288]
[1739689582203,0.264,2708.3,2708.2,0.13905785]
[1739689582405,0.264,2708.3,2707.9,3.69288]
[1739689582599,0.264,2708.3,2708.2,0.13905785]
[1739689582907,3.95636,2708.3,2707.8,0.7599]
[1739689583101,4.73806,2708.3,2708.2,0.13906766]
[1739689583403,0.7817,2708.0,2707.5,3.69336]
[1739689583572,3.69294,2707.9,2707.5,3.69336]
[1739689584104,3.69294,2707.9,2707.4,4.45345037]
[1739689586508,3.69294,2707.9,2707.5,3.69343]
[1739689586874,3.69294,2707.9,2707.4,4.45347037]
[1739689587190,3.69294,2707.9,2707.4,5.26819241]
[1739689587388,0.7817,2708.0,2707.5,3.69334]
[1739689587592,4.4745,2708.0,2707.5,3.69334]
[1739689588201,0.7817,2708.0,2707.4,5.26819241]
[1739689588401,3.6929,2707.9,2707.4,8.96169241]
[1739689588600,3.6929,2707.9,2707.5,0.89616924]
[1739689588802,4.47449,2708.0,2707.5,4.58952924]
[1739689589002,3.69292,2707.9,2707.4,8.14688037]
[1739689591114,3.69292,2707.9,2707.4,4.45338037]
[1739689592205,3.69319,2707.7,2707.4,3.7e-07]
[1739689594085,3.69319,2707.7,2707.5,0.13984409]
[1739689594620,3.6933,2707.6,2707.5,0.13984409]
[1739689595420,3.69319,2707.7,2707.5,0.13984409]
[1739689596907,4.4478,2707.6,2707.5,0.13984409]
[1739689598193,9.70817644,2707.6,2707.5,0.13984409]
[1739689598394,8.95367644,2707.6,2707.4,3.7e-07]
[1739689598588,4.71194,2707.5,2707.4,3.7e-07]
[1739689601702,4.71194,2707.5,2707.4,0.13995494]
[1739689602038,5.76250449,2707.5,2707.4,3.7e-07]
[1739689605135,5.76250449,2707.5,2707.4,0.14012173]
[1739689605302,5.76250449,2707.5,2707.4,3.7e-07]
[1739689605503,5.76250449,2707.5,2707.4,0.14012173]
[1739689605837,5.76250449,2707.5,2707.4,3.7e-07]
[1739689629616,7.1821248,2707.5,2707.4,3.7e-07]
[1739689633241,15.99250124,2707.5,2707.4,3.7e-07]
[1739689635077,16.18384196,2707.5,2707.4,3.7e-07]
[1739689635225,3.69426,2706.9,2706.8,1.59e-06]
[1739689635554,3.69508,2706.3,2705.9,0.00554344]
[1739689635727,4.72808,2706.3,2705.9,0.00554344]
[1739689635927,6.14770031,2706.3,2705.9,0.00554344]
[1739689637746,4.72808,2706.3,2705.9,0.00554344]
[1739689638828,7.72808,2706.3,2705.9,0.00554344]
[1739689639056,8.77864449,2706.3,2705.9,0.00554344]
[1739689640160,8.77864449,2706.3,2706.2,2.82e-06]
[1739689640956,9.32864449,2706.3,2706.2,2.82e-06]
[1739689641155,10.28813903,2706.0,2705.9,0.00554344]
[1739689641659,4.5172,2705.7,2705.6,0.00554405]
[1739689641837,15.99641447,2705.7,2705.6,0.00554405]
[1739689642381,15.99641447,2705.7,2705.0,0.00554528]
[1739689642382,3.0,2705.3,2705.0,0.00554528]
[1739689642667,4.51802,2705.1,2705.0,0.00554528]
[1739689642832,12.77839644,2705.1,2705.0,0.00554528]
[1739689643947,3.0,2705.0,2704.7,0.0055459]
[1739689644246,3.0,2705.0,2704.4,0.70220811]
[1739689644247,7.51925,2704.2,2704.1,7.13e-06]
[1739689644447,10.55459903,2704.2,2704.1,7.13e-06]
[1739689644662,10.55459903,2704.2,2703.8,0.00554774]
[1739689644663,3.69836,2703.9,2703.8,0.00554774]
[1739689644837,0.264,2703.9,2703.8,0.00554774]
[1739689645165,0.8213,2704.6,2703.9,0.7505]